Cogmind - Beta 13 @@@ ROGUE MODE // 2024.03.28 @ 17:26:41 Player: Cmdr.Laserstrahl Result: Destroyed by H-66 Slayer with Gauss Rifle Performance ------------- Evolutions (4) 2000 Regions Visited (5) 1000 Robots Destroyed (161) 805 Value Destroyed (5270) 5270 Prototype IDs (6) 120 Alien Tech Used (0) 0 Bonus (1320) 1320 TOTAL SCORE: 10515 Bonus ------- High Alert Combat Kills 1320 Cogmind --------- Core Integrity 0/850 Matter 280/300 Energy 73/100 System Corruption 0% Temperature Cool (1) Movement Flying (40) Location -6/Factory Parts ------- > --- POWER (2) -------- (None) > --- PROPULSION (4) --- Nuclear Pulse Thruster > --- UTILITY (7) ------ Improved Signal Interpreter Core Analyzer Cloaking Device Thermal Shield Hacking Suite Corruption Screen > --- WEAPON (2) ------- Advanced Beam Rifle > --- INVENTORY (5) ---- Improved Heat Sink Layered Light Armor Plating Peak State ------------ > --- POWER ------------ Enhanced Nuclear Core Light Fission Core > --- PROPULSION ------- Armored Huge Wheel Armored Huge Wheel > --- UTILITY ---------- Large Storage Unit Improved Signal Interpreter Core Analyzer Improved Light Armor Plating Remote Force Field Hacking Suite Corruption Screen > --- WEAPON ----------- Cooled Particle Cannon Mini Assault Cannon > --- INVENTORY -------- Improved Heat Sink Advanced ECM Suite Cloaking Device Layered Light Armor Plating Improved Hacking Suite Improved Trap Extractor Advanced Beam Rifle Gauss Rifle Gauss Rifle Flak Gun Mini Assault Cannon Mini Assault Cannon EMP Blaster Heavy Missile Launcher Remote Datajack [Rating: 66] Favorites ----------- Power Light Nuclear Core Engine Improved Ion Engine Power Core Light Nuclear Core Propulsion Wheel Treads Light Treads Wheel Wheel Flight Unit Nuclear Pulse Thruster Utility Large Storage Unit Device Improved Heat Sink Storage Large Storage Unit Processor Improved Signal Interpreter Hackware Hacking Suite Protection Improved Light Armor Plating Weapon Mini Assault Cannon Energy Gun Heavy Particle Gun Energy Cannon Cooled Particle Cannon Ballistic Gun Flak Gun Ballistic Cannon Mini Assault Cannon Launcher EMP Blaster Special Weapon Mining Laser Impact Weapon Heavy Hammer Build | -11 -10 -9 -8 -7 -6 ------- Run | Yrd Mat Mat Mat Fac Fac Slots Evolved 8 | . . 2 2 2 2 Power 1 | . . . . 1 . Propulsion 2 | . . . . . 2 Utility 5 | . . 2 2 1 . Weapon . | . . . . . . Parts Attached 137 | 7 5 13 45 34 33 Power 22 | 1 . 3 5 7 6 Engine 10 | 1 . 3 3 1 2 Core 12 | . . . 2 6 4 Reactor . | . . . . . . Propulsion 31 | 2 1 2 7 8 11 Treads 6 | . . . . 6 . Leg . | . . . . . . Wheel 24 | 2 1 2 7 2 10 Hover . | . . . . . . Flight 1 | . . . . . 1 Utility 43 | 2 3 5 14 9 10 Device 19 | 1 1 2 5 3 7 Storage 2 | 1 1 . . . . Processor 4 | . . . 1 2 1 Hackware 1 | . . . 1 . . Protection 17 | . 1 3 7 4 2 Artifact . | . . . . . . Weapon 41 | 2 1 3 19 10 6 Energy Gun 14 | 2 1 2 7 1 1 Energy Cannon 2 | . . . . 1 1 Ballistic Gun 11 | . . 1 6 3 1 Ballistic Cannon 4 | . . . 1 2 1 Launcher 7 | . . . 2 3 2 Special Weapon 2 | . . . 2 . . Impact Weapon 1 | . . . 1 . . Slashing Weapon . | . . . . . . Piercing Weapon . | . . . . . . Special Melee Weapon . | . . . . . . Unidentified Prototypes 6 | . . 1 2 3 . Parts Lost 46 | . 2 3 7 13 21 Power 9 | . . 1 . 3 5 Propulsion 14 | . 1 1 2 4 6 Utility 16 | . . 1 4 4 7 Weapon 7 | . 1 . 1 2 3 Highest Loss Streak 9 | . 1 3 3 9 8 To Critical Strikes . | . . . . . . Average Slot Usage (%) 93 | . 97 96 97 97 84 Engine 4 | . 14 11 5 1 1 Core 7 | . . . 3 11 9 Treads 3 | . . . . 11 . Wheel 13 | . 25 21 17 2 14 Device 10 | . 13 5 17 8 7 Storage 8 | . 14 11 9 7 5 Processor 12 | . . . 6 19 19 Hackware 5 | . . . 5 7 6 Protection 9 | . . 24 14 8 5 Energy Gun 8 | . 28 20 8 6 . Energy Cannon 1 | . . . . . 4 Ballistic Gun 3 | . . 1 6 4 . Ballistic Cannon 2 | . . . 1 2 5 Naked Turns . | . . . . . . Heaviest Build 61 | 14 28 42 49 58 61 Greatest Support 60 | 26 32 32 32 40 60 Greatest Overweight (x) 7 | . 1 1 3 5 7 Average Overweight (x) . | . . . 1 1 . Largest Inventory Capacity 15 | 8 15 15 15 15 15 Average Capacity 14 | 7 11 15 15 15 13 Most Carried 15 | 6 11 15 15 15 15 Average Carried 13 | 3 7 13 14 13 13 Final Capacity 15 | 8 15 15 15 15 5 Final Carried 15 | 5 10 15 15 15 2 Class Distribution -------------------- 60% | Scavenger-Mutant 39% | Mutant Dominant Class ---------------- Mutant | -10/Materials Scavenger-Mutant | -9/Materials Scavenger-Mutant | -8/Materials Scavenger-Mutant | -7/Factory Mutant | -6/Factory Resources | -11 -10 -9 -8 -7 -6 ----------- Run | Yrd Mat Mat Mat Fac Fac Matter Collected 3070 | 270 30 135 889 741 1005 Remotely . | . . . . . . Salvage Created 6954 | 104 592 775 1676 1443 2364 Parts 336 | 2 18 41 101 64 110 Haulers Intercepted 10 | . 2 1 4 1 2 Recyclers Shooed 11 | . . 2 2 3 4 Parts Field Recycled . | . . . . . . Retrieved Matter . | . . . . . . Parts Self-Destructed . | . . . . . . Prevented . | . . . . . . Kills | -11 -10 -9 -8 -7 -6 ------- Run | Yrd Mat Mat Mat Fac Fac Combat Hostiles Destroyed 101 | . 8 11 27 29 26 Guns 51 | . 7 10 17 16 1 Cannons 32 | . . . 2 7 23 AOE 17 | . 1 1 8 6 1 Classes Destroyed 18 | 2 3 4 5 1 3 Worker 8 | . . . 3 1 4 Builder 6 | . . . 3 . 3 Tunneler 4 | 1 . . . 2 1 Hauler 10 | . 2 1 4 1 2 Recycler 23 | 1 3 2 4 5 8 Mechanic 1 | . . . . . 1 Operator 1 | . . 1 . . . Watcher 7 | . . 1 2 1 3 Swarmer 19 | . 2 . 6 7 4 Cutter 1 | . . . 1 . . Grunt 50 | . 6 7 9 15 13 Brawler 1 | . . . . . 1 Duelist 5 | . . 1 . 1 3 Protector 1 | . . . . . 1 Sentry 14 | . . 3 7 4 . Specialist 2 | . . . 2 . . Hunter 5 | . . . 2 1 2 Programmer 3 | . . . . 1 2 Best Kill Streak 8 | 2 4 7 5 8 7 Combat Bots Only 7 | . 4 7 5 7 4 Max Kills in Single Turn 4 | 2 1 1 3 4 3 Gunslinging . | . . . . . . Exploded 4 | . 1 1 2 4 1 Melee . | . . . . . . Uniques/NPCs Destroyed . | . . . . . . Combat | -11 -10 -9 -8 -7 -6 -------- Run | Yrd Mat Mat Mat Fac Fac Hostile Shots Fired 814 | . 30 56 193 288 247 Missed 245 | . 9 16 57 81 82 Damage Taken 8025 | 30 283 578 1800 2002 3332 Core 1471 | 15 62 101 207 236 850 Absorbed by Shields 551 | . . . . 428 123 Redirected to Shielding 73 | . . 60 13 . . Ignored by Resistances 28 | . . . . . 28 Regen/Repaired (Parts) 168 | . . . . 168 . Core Remaining (%) 73 | 94 69 74 62 66 . Volleys Fired 439 | 6 42 43 121 99 128 Largest 2 | 2 2 2 2 2 2 Hottest 138 | 80 80 108 125 108 138 Shots Fired 820 | 12 83 79 224 185 237 Gun 514 | 12 83 79 192 137 11 Cannon 276 | . . . 9 43 224 Launcher 16 | . . . 9 5 2 Special 14 | . . . 14 . . Kinetic 306 | . . . 98 84 124 Thermal 442 | 6 69 43 117 96 111 Explosive 8 | . . . 6 . 2 Electromagnetic 64 | 6 14 36 3 5 . Robot Hit Streak 18 | 4 13 14 18 8 14 Robot Miss Streak 9 | 1 2 3 4 9 4 Penetration Max 1 | . . . . . 1 Secondary Targets 7 | . 1 1 2 3 . Max Gunslinging Chain 1 | . 1 1 1 1 . Shots Hit Robots 517 | 9 54 63 138 125 128 Core Hits 353 | 3 24 35 74 129 88 Critical Kills 2 | . . . . 1 1 Critical Parts Destroyed 1 | . . . 1 . . Critical Strikes 14 | . . . 7 3 4 Burn 7 | . . . 6 1 . Meltdown 1 | . . . . . 1 Destroy 2 | . . . 1 1 . Blast 4 | . . . . 1 3 Melee Attacks 4 | . . . 4 . . Impact 4 | . . . 4 . . Slashing . | . . . . . . Piercing . | . . . . . . Sneak Attacks . | . . . . . . Combat Hostiles . | . . . . . . Follow-up Attacks . | . . . . . . Damage Inflicted 13637 | 150 912 940 2957 3024 5654 Guns 5585 | 121 607 828 2107 1773 149 Cannons 5107 | . . . 139 818 4150 Explosions 2919 | 28 305 112 687 432 1355 Melee . | . . . . . . Ramming 2 | 1 . . . 1 . Kinetic 4477 | . . . 1179 1448 1850 Thermal 6266 | 82 575 466 1091 1385 2667 Explosive 1925 | . 247 . 687 . 991 Electromagnetic 967 | 67 90 474 . 190 146 Impact . | . . . . . . Slashing . | . . . . . . Piercing . | . . . . . . Highest Corruption 1 | . . . 1 1 . Average Corruption 1 | . . . 1 1 . Corruption Purged . | . . . . . . Corruption Blocked 1 | . . . . . 1 Effects 12 | . . . 5 7 . Message Errors 2 | . . . 1 1 . Heat Flow Errors 2 | . . . 2 . . Energy Discharges 2 | . . . 1 1 . Data Loss (minor) 3 | . . . 1 2 . Misfires 1 | . . . . 1 . Alerts 1 | . . . . 1 . Weapon Failures 1 | . . . . 1 . Overload Shots 44 | . . . . 5 39 Effects 2 | . . . . 1 1 Heat Surge 1 | . . . . . 1 Short Circuit 1 | . . . . 1 . Overflow Damage 264 | 21 13 . 62 30 138 Projectiles 129 | . . . . 30 99 Explosions 135 | 21 13 . 62 . 39 Melee . | . . . . . . Knockbacks 33 | . . . 3 15 15 Impact . | . . . . . . Kinetic 32 | . . . 3 14 15 Secondary 1 | . . . . 1 . Self-Inflicted Damage 222 | 31 15 . 16 30 130 Shots 8 | 1 1 . 1 2 3 Rammed 2 | 1 . . . 1 . Targets Rammed 2 | 1 . . . 1 . Kicked . | . . . . . . Crushed . | . . . . . . Highest Temperature 362 | 120 144 306 219 198 362 Average Temperature 73 | 65 48 87 53 61 94 Received Heat Transfer 2832 | . 96 219 585 642 1290 Effects 9 | . . 1 . . 8 Shutdowns 1 | . . . . . 1 Energy Bleed 4 | . . 1 . . 3 Interference 3 | . . . . . 3 Matter Decay 1 | . . . . . 1 Siege Activations . | . . . . . . Robots Corrupted . | . . . . . . Combat Hostiles . | . . . . . . Parts Fried 2 | . . 2 . . . Impact Corruptions . | . . . . . . Robots Melted 1 | . . . . . 1 Combat Hostiles 1 | . . . . . 1 Parts Melted 9 | . 1 . 4 1 3 Heat Transferred 10170 | 175 1175 912 2751 2418 2739 Parts Sabotaged . | . . . . . . Parts Stolen . | . . . . . . Parts Stripped . | . . . . . . Power Chain Reactions 6 | 1 1 1 . 2 1 Alert | -11 -10 -9 -8 -7 -6 ------- Run | Yrd Mat Mat Mat Fac Fac Peak Influence 1313 | 10 301 394 832 1093 1313 Initial 491 | . 6 42 81 378 491 Average 659 | 4 149 206 456 876 968 Maximum Alert Level 4 | . 1 1 3 3 4 Low Security (%) 16 | 100 71 52 16 . . Level 1 15 | . 28 47 34 2 . Level 2 13 | . . . 27 7 19 Level 3 45 | . . . 21 90 52 Level 4 7 | . . . . . 28 Level 5 . | . . . . . . High Security . | . . . . . . Max Security . | . . . . . . Squads Dispatched 27 | . 1 . 6 9 11 Investigation 2 | . . . . 1 1 Extermination 4 | . . . . 2 2 Reinforcement 11 | . 1 . 4 3 3 Assault 5 | . . . . 1 4 Garrison 5 | . . . 2 2 1 Intercept . | . . . . . . Searches Triggered . | . . . . . . Construction Impeded 2 | . . . . 1 1 Haulers Reinforced 1 | . . . . 1 . Active Scanning Responses . | . . . . . . Cargo Convoy Interrupts . | . . . . . . Stealth | -11 -10 -9 -8 -7 -6 --------- Run | Yrd Mat Mat Mat Fac Fac Distress Signals 5 | . . 1 1 1 2 Communications Jammed . | . . . . . . Distress Signals . | . . . . . . Times Spotted 170 | . 12 13 43 40 62 Peak Tracking Total 12 | . 3 4 5 6 12 Tactical Retreats 13 | . 1 . 3 2 7 Traps | -11 -10 -9 -8 -7 -6 ------- Run | Yrd Mat Mat Mat Fac Fac Traps Triggered 4 | . 1 . 1 . 2 Indirectly . | . . . . . . Trap Hack Attempts . | . . . . . . Triggered . | . . . . . . Disarmed . | . . . . . . Reprogrammed . | . . . . . . Reused . | . . . . . . Traps Extracted . | . . . . . . Installed . | . . . . . . Triggered . | . . . . . . Machines | -11 -10 -9 -8 -7 -6 ---------- Run | Yrd Mat Mat Mat Fac Fac Machines Disabled 32 | . 3 2 4 10 13 Max in Single Turn 4 | . 2 2 1 4 4 Garrison Access 2 | . . . . 1 1 Machines Repaired . | . . . . . . Machines Dismantled . | . . . . . . Machines Sabotaged . | . . . . . . Overloaded Fab Kills . | . . . . . . Hacking | -11 -10 -9 -8 -7 -6 --------- Run | Yrd Mat Mat Mat Fac Fac Machines Accessed 24 | . 5 2 6 4 7 Terminals 15 | . 3 2 5 1 4 Fabricators . | . . . . . . Repair Stations 3 | . 1 . . 2 . Recycling Units 2 | . 1 . . . 1 Scanalyzers 4 | . . . 1 1 2 Garrison Access . | . . . . . . Total Hacks 71 | . 14 6 21 16 14 Successful 32 | . 4 2 6 14 6 Failed 39 | . 10 4 15 2 8 Catastrophic 8 | . 1 1 3 . 3 Database Lockouts . | . . . . . . Manual 26 | . 7 4 9 2 4 Terminals 39 | . 10 6 14 2 7 Fabricators . | . . . . . . Repair Stations 6 | . 3 . . 3 . Recycling Units 2 | . 1 . . . 1 Scanalyzers 24 | . . . 7 11 6 Garrison Access . | . . . . . . Terminal Hacks 11 | . 2 2 4 1 2 Record 1 | . . . . . 1 Open DSF 1 | . . . . . 1 Branch Access Points 4 | . 1 1 1 1 . Locate Traps 1 | . 1 . . . . Hauler Manifests 2 | . . . 2 . . Zone Layout 2 | . . 1 1 . . Fabricator Hacks . | . . . . . . Repair Station Hacks 3 | . 1 . . 2 . Scan Component 2 | . 1 . . 1 . Repair 1 | . . . . 1 . Recycling Unit Hacks 2 | . 1 . . . 1 Report Inventory 2 | . 1 . . . 1 Scanalyzer 16 | . . . 2 11 3 Insert Component 7 | . . . 1 4 2 Analyze 9 | . . . 1 7 1 Garrison Access Hacks . | . . . . . . Unauthorized Hacks . | . . . . . . Terminals . | . . . . . . Fabricators . | . . . . . . Repair Stations . | . . . . . . Recycling Units . | . . . . . . Scanalyzers . | . . . . . . Garrison Access . | . . . . . . Data Cores Recovered 1 | . . 1 . . . Used . | . . . . . . Hacking Detections 22 | . 5 2 5 4 6 Full Trace Events 2 | . . . . 1 1 Feedback Events . | . . . . . . Feedback Blocked . | . . . . . . Robot Schematics Acquired . | . . . . . . Robots Built . | . . . . . . Authchips . | . . . . . . Time . | . . . . . . Total Robot Build Rating . | . . . . . . Part Schematics Acquired 6 | . . . 1 4 1 Parts Built . | . . . . . . Authchips . | . . . . . . Time . | . . . . . . Total Part Build Rating . | . . . . . . Parts Repaired 1 | . . . . 1 . Time 38 | . . . . 38 . Parts Recycled . | . . . . . . Recycled Matter . | . . . . . . Retrieved Matter . | . . . . . . Retrieved Components . | . . . . . . Parts Scanalyzed 7 | . . . 1 4 2 Part Schematics Acquired 6 | . . . 1 4 1 Parts Damaged 1 | . . . . . 1 Bothacking | -11 -10 -9 -8 -7 -6 ------------ Run | Yrd Mat Mat Mat Fac Fac Used RIF Installer . | . . . . . . Robots Hacked . | . . . . . . Non-combat . | . . . . . . Combat . | . . . . . . Robot Hacks Applied . | . . . . . . Relay Couplers Released 3 | . . . . 2 1 Machine Destruction 3 | . . . . 2 1 Fabnet Peak Effective % . | . . . . . . Robots Rewired . | . . . . . . Allies Hacked . | . . . . . . Hacks Repelled . | . . . . . . Allies | -11 -10 -9 -8 -7 -6 -------- Run | Yrd Mat Mat Mat Fac Fac Total Allies . | . . . . . . Largest Group . | . . . . . . Highest-Rated Group . | . . . . . . Highest-Rated Ally . | . . . . . . Total Orders . | . . . . . . Ally Attacks . | . . . . . . Total Damage . | . . . . . . Kills . | . . . . . . Allies Corrupted . | . . . . . . Allies Melted . | . . . . . . Intel | -11 -10 -9 -8 -7 -6 ------- Run | Yrd Mat Mat Mat Fac Fac Robot Analysis Total . | . . . . . . Derelict Logs Recovered . | . . . . . . Drone Launches . | . . . . . . Drone Recoveries . | . . . . . . Exploration | -11 -10 -9 -8 -7 -6 ------------- Run | Yrd Mat Mat Mat Fac Fac Turns Passed 4769 | 104 404 423 1159 1404 1275 Spaces Moved 2385 | 42 243 241 617 483 759 Core 96 | 2 . . . . 94 Treads 354 | . . . . 354 . Legs . | . . . . . . Wheels 1911 | 40 243 241 617 129 641 Hover . | . . . . . . Flight 24 | . . . . . 24 Fastest Speed 40 | 50 90 100 95 110 40 Average Speed 124 | 87 99 108 105 204 103 Slowest Speed 400 | 90 115 115 130 320 400 Overloaded Moves . | . . . . . . Propulsion Burnouts . | . . . . . . Robots Hopped . | . . . . . . Cave-ins Triggered . | . . . . . . Exploration Rate (%) 32 | 5 64 26 69 12 21 Regions Visited 5 Branch Regions . Pre-discovered Areas . | . . . . . . Known Exits Taken 2 | . . . 1 1 . Unknown Exits Taken 3 | 1 1 1 . . . Scrap Searched . | . . . . . . Spaces Dug 18 | . . . 13 . 5 Terrain Destroyed 241 | . 41 . 52 44 104 Melee 2 | . . . 2 . . Projectile 54 | . . . 12 3 39 AOE 185 | . 41 . 38 41 65 Terrain Rammed . | . . . . . . Walls Destroyed . | . . . . . . Machines Disabled . | . . . . . . Actions | -11 -10 -9 -8 -7 -6 --------- Run | Yrd Mat Mat Mat Fac Fac Total 3350 | 97 322 329 882 709 1011 Wait 184 | 30 20 4 37 54 39 Move 2381 | 42 242 240 616 482 759 Hop . | . . . . . . Pick Up 104 | 12 10 17 25 22 18 Fast Attach 35 | . . 1 12 11 11 Attach 57 | 7 4 8 10 15 13 Detach 3 | . . 1 1 . 1 Swap 45 | . 1 4 23 8 9 Drop 81 | . 3 11 33 17 17 Fire 439 | 6 42 43 121 99 128 Melee 4 | . . . 4 . . Ram . | . . . . . . Kick . | . . . . . . Crush 1 | . . . . 1 . Escape Stasis 16 | . . . . . 16 Rewire . | . . . . . . Trap . | . . . . . . Miscellaneous . | . . . . . . Route ------- -11/Scrapyard -10/Materials (discovered 3 exits: *Mat / Min x2) -9/Materials (discovered 2 exits: *Mat / Min) -8/Materials (discovered 2 exits: *Fac x2) -7/Factory (discovered 5 exits: *Fac / Sto x2 / Low x2) -6/Factory History --------- Turn | Location | Event 25 | -11/Scrapyard | Discovered new exit (range 16) 105 | -11/Scrapyard | Entered Materials 115 | -10/Materials | Identified exit to Mines 306 | -10/Materials | Build established: Mutant 470 | -10/Materials | Discovered new exit (range 16) 509 | -10/Materials | Entered another Materials area 509 | -9/Materials | Evolved 2 slots: Utility x2 734 | -9/Materials | Lost 3 parts (1p1n1u) 774 | -9/Materials | Destroyed 7 combat bots 790 | -9/Materials | Identified exit to Mines 919 | -9/Materials | Discovered new exit (range 4) 932 | -9/Materials | Entered another Materials area 932 | -8/Materials | Evolved 2 slots: Utility x2 1022 | -8/Materials | Build established: Scavenger-Mutant 1122 | -8/Materials | Lost 3 parts (1n2u) 1339 | -8/Materials | Garrison activated, responded to threat 1548 | -8/Materials | Discovered new exit (range 10) 1822 | -8/Materials | Garrison activated, responded to threat 2062 | -8/Materials | Discovered new exit (range 16) 2090 | -8/Materials | Identified exit to Factory 2091 | -8/Materials | Entered Factory 2091 | -7/Factory | Evolved 2 slots: Power x1, Utility x1 2194 | -7/Factory | Garrison activated, responded to threat 2209 | -7/Factory | Destroyed 7 combat bots 2288 | -7/Factory | Lost 9 parts (2p2n4u1w) 2294 | -7/Factory | Destroyed 7 combat bots 2781 | -7/Factory | Repaired Imp. Light Armor Plating 3004 | -7/Factory | Identified exit to Storage 3004 | -7/Factory | Identified exit to Lower Caves 3211 | -7/Factory | Discovered new exit (range 16) 3405 | -7/Factory | Identified exit to Factory 3495 | -7/Factory | Entered another Factory area 3495 | -6/Factory | Evolved 2 slots: Propulsion x2 3621 | -6/Factory | Garrison activated, responded to threat 4164 | -6/Factory | Build established: Mutant 4195 | -6/Factory | First assault squad dispatched 4634 | -6/Factory | Spotted B-75 Beast 4653 | -6/Factory | Core integrity fell below 50% 4685 | -6/Factory | Lost 8 parts (2p2n2u2w) 4707 | -6/Factory | Core integrity fell below 20% 4744 | -6/Factory | Lost 4 parts (2p1u1w) 4770 | -6/Factory | Destroyed by H-66 Slayer with Gauss Rifle Last Messages --------------- 04646_ Critical hit (Burn: +50). 04647_ K-01 Serf collects debris. 04647_ Hvy. Missile Launcher destroyed. 04650_ Arm. Huge Wheel destroyed. 04650_ Adv. ECM Suite destroyed. 04653_ Critical hit (Burn: +37). 04654_ Wheel destroyed. 04654_ Terminal disabled. 04659_ Acquired 5 matter. 04662_ Acquired 2 matter. 04673_ Acquired Lgt. Fission Core. 04685_ Critical hit (Burn: +37). 04710_ Lgt. Fission Core destroyed. 04710_ Acquired Thermal Shield. 04711_ Cld. Particle Cannon destroyed. 04713_ Adv. Sensor Array destroyed. 04714_ K-01 Serf collects debris. 04719_ Acquired 83 matter. 04735_ Acquired Nuclear Pulse Thruster. 04770_ Penetrated by Slug. Map ----- +----------------------------------------------------+ | " """ """ " % % *# """ #?????????????????? | | " """ """ # % + =% """"" #?????????????????? | | " """ """ # ##^ ^""" #?????????????????? | | + ## ^ #?????????????????? | | " """ """ # """ ## #?????????????????? | | " """ """ # """ ## #?????????????????? | | " """ """ # """ ##! ! #?????????????????? | | # ## ????????????????? | | ##########+##+## ###???????????????? | | = #??????????????# #?????????????????? | | ###+###########??????????# #?????????????????? | | #??????????# #?????????????????? | | #??????????? #?????????????????? | | #??????????? #?????????????????? | | #???????????? #?????????????????? | | #??????????????? #?????????????????? | | ######### #??????????????? #?????????????????? | | # #?????????????? u#?????????????????? | | """ # #?????????????? k#?????????????????? | | """"" + +????????????? #?????????????????? | | """"" # #????????????? #?????????????????? | | # #???????????? #?????????????????? | | ! """ # #???????????? #?????????????????? | | """"" # #??????????? #?????????????????? | | """"" # ############ ######????????????? | | ? # @ u ku ????????? | | ?######## ????????? | | ????????# u ????????? | | ????????# u ?????????? | | ????????# A h ?????????? | | ????????################+#############+??????????? | | ?????????????????????????????????????????????????? | | ?????????????????????????????????????????????????? | | ?????????????????????????????????????????????????? | | ?????????????????????????????????????????????????? | | ?????????????????????????????????????????????????? | | ?????????????????????????????????????????????????? | | ?????????????????????????????????????????????????? | | ?????????????????????????????????????????????????? | | ?????????????????????????????????????????????????? | | ?????????????????????????????????????????????????? | | ?????????????????????????????????????????????????? | | ?????????????????????????????????????????????????? | | ?????????????????????????????????????????????????? | | ?????????????????????????????????????????????????? | | ?????????????????????????????????????????????????? | | ?????????????????????????????????????????????????? | | ?????????????????????????????????????????????????? | | ?????????????????????????????????????????????????? | | ?????????????????????????????????????????????????? | +----------------------------------------------------+ Best States ------------- Heat Dissipation 62 Energy Generation 31 Energy Capacity 465 Matter Stores 300 Matter Capacity 300 Sight Range 16 Robot Scan Range 16 Terrain Scan Range 16 Terrain Scan Density 10 ECM Strength 2 Cloak Strength 2 Corruption Block 8 Armor Coverage 375 Resistance: TH 20 Core Shielding 20 Weapon Shielding 33 Evasion (%) 62 Core Analysis 6 Armor Integrity Analysis 30 Recoil Reduction 2 Offensive Hacking 10 Item Schematics ----------------- Imp. Heat Sink | -8/Materials | Scanalyzed Gauss Rifle | -7/Factory | Scanalyzed EMP Blaster | -7/Factory | Scanalyzed Hvy. Missile Launcher | -7/Factory | Scanalyzed Imp. Light Armor Plating | -7/Factory | Scanalyzed Cld. Particle Cannon | -6/Factory | Scanalyzed Robot Schematics ------------------ None Fabricated ------------ Nothing Alien Tech Used ----------------- None Achievements -------------- None Challenges ------------ None Game ------ Seed AlertClaymoresDisintegrator Manual? 0 Play Time 02:43:55 Cumulative 185.5 hours Start 2024.03.28 @ 09:58:56 End 2024.03.28 @ 17:26:41 Sessions 3 Manual Loads 0 Difficulty Rogue Special Mode None Game No. 87 Rogue 84 Adventurer 3 Explorer 0 Win Type - Total 0 Types 0/0/0/0/0/0/0/0/0 Lore% 25 Gallery% 47 Achievement% 32 Wizard Run 0 Options --------- Layout 0 ASCII 0 Keyboard 0 Movement Mouse Keybinds 0 Fullscreen 2 Font 18/SmallcapsGlow Map View 76x50 Zoom Use 0% Tactical HUD 1 Map Filters NONE Filters NONE Steam 1 RUN: d64aab49-e5fc-45f0-a815-19487d25a67b